[Event "SixDays Budapest GM-C 10-2024"]
[Site "Budapest"]
[Date "2024.10.03"]
[Round "6.5"]
[White "Mamatov, Melis"]
[Black "Susilodinata, Andrean"]
[Result "0-1"]
[ECO "B12"]
[WhiteElo "2362"]
[BlackElo "2393"]
[Annotator "TA"]
[PlyCount "80"]
[EventDate "2024.09.24"]
[EventType "tourn"]
[EventCountry "HUN"]
[SourceTitle "playchess.com"]
[Source "ChessBase"]
[SourceQuality "1"]
[TimeControl "5400+30"]

{[%evp 13,80,-39,-26,-38,-32,-30,-26,-30,-23,-22,-35,-31,-32,-31,-22,-23,-28,-33,-26,-15,0,-13,-27,-342,-299,-347,-328,-351,-342,-330,-338,-444,-441,-410,-374,-441,-434,-439,-418,-1152,-1024,-1063,-603,-593,-629,-614,-604,-587,-602,-576,-514,-456,-336,-338,-304,-297,-288,-281,-286,-293,-303,-6498,-223,-247,-232,-29993,-29994,-29998,-29999]} 1. e4 {[%emt 0:00:32]} c6 {[%emt 0:00:05]} 2. d4 {[%emt 0:00:09]} d5 {[%emt 0:00:02]} 3. e5 {[%emt 0:00:06]} Bf5 {[%emt 0:00:06]} 4. h4 {[%emt 0:00:04]} Qb6 {[%emt 0:02:28]} 5. c3 {[%emt 0:00:25]} e6 {[%emt 0:00:48]} 6. Ne2 {[%emt 0:04:15] B12: Caro-Kann: Advance Variation.} c5 $146 {[%emt 0:03:42]} ({Predecessor:} 6... Nd7 7. Nd2 h6 8. Ng3 Bh7 9. Nf3 Ne7 10. Bd3 Bxd3 11. Qxd3 c5 12. O-O Nc6 13. Rb1 {½-½ Sharma,D (2390)-Roy,P (2238) IND-chB 51st 2013 (9)}) 7. Nd2 {[%emt 0:08:55]} Nc6 {[%emt 0:01:57]} 8. Nb3 {[%emt 0:00:31]} c4 {[%emt 0:10:33]} 9. Nd2 {[%emt 0:00:22]} f6 {[%emt 0:05:05]} 10. exf6 {[%emt 0:13:03]} Nxf6 {[%emt 0:00:02]} 11. Ng3 {[%emt 0:03:34]} Bd6 {[%emt 0:05:22]} 12. Nxf5 {[%emt 0:00:23]} exf5 {[%emt 0:00:02]} 13. Qe2+ {[%emt 0:07:13]} Kf7 {[%emt 0:26:36]} 14. Qf3 {[%emt 0:00:16]} Rae8+ {[%emt 0:00:49]} 15. Be2 {[%emt 0:00:08]} Re7 {[%emt 0:00:32]} 16. O-O $1 {[%emt 0:01:01]} (16. Qxf5 $2 Rhe8 17. O-O Rxe2 $19) 16... Rhe8 {[%emt 0:00:07]} 17. Bd1 {[%emt 0:19:48]} (17. Nxc4 $5 dxc4 18. Bxc4+ Kf8 19. Bg5 $11) 17... g6 {[%emt 0:01:01]} (17... Re1 {feels hotter.} 18. Qxf5 Nxd4 19. cxd4 Qxd4 20. g4 Kg8) 18. b3 $2 {[%emt 0:00:39][%mdl 8192] [#]} (18. h5 $11 {and White is okay.}) 18... Nxd4 $1 $19 {[%emt 0:00:28]} 19. cxd4 {[%emt 0:13:28]} Qxd4 {[%emt 0:00:06]} 20. bxc4 {[%emt 0:06:00]} Qxa1 {[%emt 0:02:01]} 21. Ba4 {[%emt 0:00:58]} Rc8 {[%emt 0:07:22]} 22. Bb3 {[%emt 0:00:29]} Qd4 {[%emt 0:00:53]} 23. g3 {[%emt 0:00:57]} Qg4 {[%emt 0:09:42]} (23... dxc4 24. Nxc4 Rxc4 25. Rd1 $19) 24. Qg2 {[%emt 0:01:21]} dxc4 {[%emt 0:01:05]} 25. Nxc4 {[%emt 0:05:29]} Rxc4 {[%emt 0:00:01]} 26. f4 {[%emt 0:00:47]} (26. Bf4 $142 Bxf4 27. Bxc4+ Kg7 28. gxf4 Qxf4 (28... Qxh4 $2 29. Qg5 $19) 29. Bd3) 26... b5 {[%emt 0:10:39]} 27. Bd1 {[%emt 0:00:02]} Rxc1 {[%emt 0:00:30]} 28. Bxg4 {[%emt 0:00:01]} Bc5+ {[%emt 0:01:42]} 29. Kh1 {[%emt 0:00:01]} Rxf1+ {[%emt 0:00:06]} 30. Qxf1 {[%emt 0:00:04]} Nxg4 {[%emt 0:00:08]} 31. Qxb5 {[%emt 0:00:04]} Bb6 {[%emt 0:01:31]} 32. h5 {[%emt 0:00:10]} Nf6 {[%emt 0:03:23]} (32... gxh5 33. Qxf5+ Nf6 34. a4 $17) 33. h6 {[%emt 0:00:16]} Rd7 {[%emt 0:00:37]} 34. a4 {[%emt 0:00:12]} Rd1+ {[%emt 0:03:47]} 35. Kg2 {[%emt 0:00:01]} Rd2+ {[%emt 0:00:04]} 36. Kf1 {[%emt 0:00:12]} Ne4 {[%emt 0:00:26]} 37. a5 $2 {[%emt 0:01:01]} (37. Qc6 Rf2+ (37... Nxg3+ 38. Ke1 $11) 38. Ke1) 37... Bc5 $2 {[%emt 0:01:02]} (37... Nxg3+ 38. Ke1 Re2+ 39. Kd1 $11) (37... Rf2+ 38. Ke1 Re2+ (38... Bc5 39. Qd7+ Kf6 40. Qc6+ Ke7 41. Qc7+ Ke6 42. Qc6+ Ke7 43. Qc7+ Ke6 44. Qc6+ Bd6 45. a6 $11) 39. Kxe2 Nc3+ (39... Nxg3+ $2 40. Kf3 $18) 40. Kd3 Nxb5 41. axb6 axb6) 38. Qb7+ $19 {[%emt 0:00:11]} Ke6 {[%emt 0:00:30]} 39. Qxh7 $2 {[%emt 0:00:21] [#]} (39. Qc6+ $19 Ke7 40. Qc7+ Ke6 41. Qc6+ Rd6 42. Qb7 Rd1+ (42... Nxg3+ 43. Ke1 $11) 43. Ke2 Rd2+ (43... Nxg3+ $2 44. Kxd1 Nh5 45. Qxh7 $18) 44. Ke1) 39... Rf2+ $1 {[%emt 0:01:08]} ({Not} 39... Nxg3+ 40. Ke1 Bb4 (40... Re2+ $2 41. Kd1 $18) 41. Qxg6+ (41. Qxa7 {is a self mate.} Rd7+ 42. Kf2 Ne4+ 43. Kg2 Rxa7 44. Kf3 Kd5 45. Ke2 Rxa5 46. h7 Ra2+ 47. Kd1 Rd2+ 48. Ke1 Rb2+ 49. Kd1 Nf2+ 50. Kc1 Nd3+ 51. Kd1 Rd2#) 41... Kd7 42. Qf7+ (42. Qxg3 Rg2+ 43. Kf1 Rxg3 44. h7 Rh3 45. Kg2 Rxh7 46. a6 Kc6 47. Kf3 Re7 48. Kf2 Be1+ 49. Kg2 Kc5 50. Kg1 Kd4 51. Kh1 Ke3 52. Kg2 Rh7 53. Kg1 Kf3 54. Kf1 Rh1#) (42. Qg7+ $2 Kc6 $19) 42... Kd8 43. Qg8+ (43. Qxa7 Rd7+ 44. Kf2 Ne4+ 45. Kf3 Rxa7 46. Ke3 Bxa5 47. Kd4 Bc3+ 48. Kd3 Rh7 49. Ke2 Rxh6 50. Kd3 Kc7 51. Kc4 Kc6 52. Kd3 Rh2 53. Kc4 Rd2 54. Kb3 Kb5 55. Ka3 Bb4+ 56. Kb3 Nc5#) 43... Kd7 44. h7 (44. Qxg3 Rg2+ 45. Kd1 Rxg3 46. Ke2 Bxa5 47. Kf1 Rh3 48. Kg2 Rxh6 49. Kf3 Ke6 50. Kf2 Kd5 51. Ke3 Re6+ 52. Kf2 Ke4 53. Kg3 Be1+ 54. Kg2 Rg6+ 55. Kh1 Bf2 56. Kh2 Kf3 57. Kh3 Rh6#) (44. Qg7+ $2 Kc6 $19) 44... Re2+ 45. Kd1 Rd2+ 46. Kc1 Ne2+ 47. Kb1 Nc3+ 48. Kc1 (48. Ka1 $2 Ra2+ 49. Qxa2 Nxa2 $19) 48... Ne2+ 49. Kb1 Nc3+ 50. Kc1 (50. Ka1 $2 Ra2+ 51. Qxa2 Nxa2 $19) 50... Ne2+ $11) 40. Kg1 {[%emt 0:00:24]} Re2+ {[%emt 0:00:06]} 0-1

[Event "SixDays Budapest GM-C 10-2024"]
[Site "Budapest"]
[Date "2024.10.04"]
[Round "7.1"]
[White "Susilodinata, Andrean"]
[Black "Pap, Gyula"]
[Result "0-1"]
[ECO "D00"]
[WhiteElo "2393"]
[BlackElo "2476"]
[Annotator "TA"]
[PlyCount "72"]
[EventDate "2024.09.24"]
[EventType "tourn"]
[EventCountry "HUN"]
[SourceTitle "playchess.com"]
[Source "ChessBase"]
[SourceQuality "1"]
[TimeControl "5400+30"]

{[%evp 9,72,0,0,-8,0,0,-17,-16,-6,-38,-35,-68,-75,-63,-75,-72,-22,-37,-33,-24,-13,-12,0,0,0,-20,-18,-27,-23,-8,-19,-16,-23,-122,-103,-108,-54,-67,-60,-161,-183,-170,-170,-145,-156,-170,-180,-156,-112,-100,-93,-237,-233,-310,-283,-489,-506,-506,-499,-1744,-1706,-1414,-1339,-1198,-1168]} 1. d4 {[%emt 0:00:02]} d5 {[%emt 0:02:08]} 2. Nc3 {[%emt 0:00:21]} Nf6 {[%emt 0:00:52]} 3. Bf4 {[%emt 0:00:06]} a6 {[%emt 0:04:02]} 4. e3 {[%emt 0:00:06]} c5 {[%emt 0:01:06]} 5. dxc5 {[%emt 0:00:07]} Qa5 {[%emt 0:01:32]} 6. Qd2 {[%emt 0:01:07]} e6 {[%emt 0:04:42]} 7. Bd6 {[%emt 0:16:32]} Bxd6 {[%emt 0:08:09]} 8. cxd6 {[%emt 0:00:02][%cal Oc3e4] Die Stellung ist ausgeglichen.} Nc6 {[%emt 0:01:23]} 9. Nf3 {[%emt 0:08:07]} O-O {[%emt 0:19:54]} 10. e4 {[%emt 0:27:05]} dxe4 {[%emt 0:03:39]} (10... Nxe4 $6 11. Nxe4 dxe4 12. Qxa5 Nxa5 13. Ne5 $11) 11. Nd4 {[%emt 0:02:03]} Nxd4 {[%emt 0:16:04]} 12. Qxd4 {[%emt 0:00:03]} e5 {[%emt 0:04:03]} (12... Rd8 $17) 13. Qd2 $1 $11 {[%emt 0:00:26][%cal Oc3e4]} Qc5 {[%emt 0:06:21]} 14. O-O-O {[%emt 0:12:11]} Rd8 {[%emt 0:00:47]} 15. Qe3 {[%emt 0:11:12]} Qxe3+ {[%emt 0:11:36]} 16. fxe3 {[%emt 0:00:02]} Ng4 {[%emt 0:00:08]} 17. Rd2 {[%emt 0:13:16] Pariert Nf2.} Nxe3 {[%emt 0:04:48] Weiss sollte ...f5 verhindern.} 18. Nxe4 {[%emt 0:00:33]} f5 {[%emt 0:07:40]} 19. Nc5 {[%emt 0:02:18] Schwarz muss nun d7 beachten.} b6 {[%emt 0:00:02]} 20. Na4 {[%emt 0:00:49]} Rb8 {[%emt 0:00:27]} 21. c4 {[%emt 0:01:22]} (21. Bd3 $11) 21... Bd7 $36 {[%emt 0:00:54][%mdl 2048] Schwarz ist am Drücker.} 22. Nc3 {[%emt 0:00:06]} Be6 {[%emt 0:00:42]} (22... Bc6 $17 23. b4 Rbc8) 23. b3 $1 $15 {[%emt 0:01:46]} Rd7 {[%emt 0:00:06]} 24. Na4 {[%emt 0:00:53]} (24. g3 $15) 24... Rbd8 $19 {[%emt 0:00:43][%cal Bb8d8,Bd8d6,Bd6c6][%mdl 32]} 25. c5 {[%emt 0:00:56]} bxc5 {[%emt 0:00:14] Und ...c4 würde nun gewinnen.} 26. Bxa6 {[%emt 0:01:05][%cal Od2e2]} Rxd6 {[%emt 0:00:29]} 27. Rxd6 {[%emt 0:00:24]} Rxd6 {[%emt 0:00:01]} 28. Nxc5 {[%emt 0:00:01]} Rc6 {[%emt 0:00:16]} (28... Nxg2 29. Rd1 Rxd1+ 30. Kxd1 $15) 29. b4 {[%emt 0:00:26]} Bxa2 {[%emt 0:00:30][%cal Oa2d5] ...Bd5! wäre nun fies. Schwarz steht deutlich aktiver.} 30. Kb2 {[%emt 0:01:21] Ein Fehler, der zur Niederlage führt.} (30. g3 $17) 30... Bd5 {[%emt 0:01:27]} 31. Re1 {[%emt 0:00:37]} f4 {[%emt 0:00:19]} (31... Nxg2 32. Rxe5 Bf7 33. Bb7 $14 (33. Rxf5 Rb6 $11)) 32. g3 $2 {[%emt 0:00:15] [#]} (32. Ra1) 32... Rxa6 $1 {[%emt 0:00:54][%mdl 512] Schwarz steht klar auf Gewinn.} 33. Nxa6 {[%emt 0:00:02] [#]} f3 {[%emt 0:00:06] Zielt auf ...f2 ab.} 34. Nc7 {[%emt 0:00:36]} ({Minderwertig wäre} 34. Rxe3 f2 35. Nc7 f1=Q (35... f1=R $2 {ist das falsche Schlagen.} 36. Nxd5 h5 37. h4 $18)) (34. Nc5 $142 f2 35. Rb1) 34... f2 {[%emt 0:00:24]} 35. Rxe3 {[%emt 0:00:40]} f1=Q {[%emt 0:00:07] ( -> ...Qf2+)} (35... f1=R $2 {zu gefräßig.} 36. Nxd5 Rf2+ 37. Kc3 $18) 36. Nxd5 {[%emt 0:00:03]} Qg2+ {[%emt 0:00:08] Gewichteter Fehlerwert: Weiß=0.48/Schwarz=0.08 (makellos) .  Fehler:       	Weiß=5     	Schwarz=2     Ungenau:       	Weiß=3     	---        OK:         	Weiß=11    	Schwarz=13    Bester:       	Weiß=1     	Schwarz=7     Stark:        	Weiß=2     	---        Brilliant:      	---       	Schwarz=1} 0-1

[Event "SixDays Budapest GM-C 10-2024"]
[Site "Budapest"]
[Date "2024.10.04"]
[Round "7.2"]
[White "Laddha, Shubh Jayesh"]
[Black "Mamatov, Melis"]
[Result "0-1"]
[ECO "C78"]
[WhiteElo "2308"]
[BlackElo "2362"]
[Annotator "RC"]
[PlyCount "114"]
[EventDate "2024.09.24"]
[EventType "tourn"]
[EventCountry "HUN"]
[SourceTitle "playchess.com"]
[Source "ChessBase"]
[SourceQuality "1"]
[TimeControl "5400+30"]

1. e4 {[%emt 0:01:07]} e5 {[%emt 0:00:06]} 2. Nf3 {[%emt 0:00:03]} Nc6 {[%emt 0:00:06]} 3. Bb5 {[%emt 0:00:03]} a6 {[%emt 0:00:06]} 4. Ba4 {[%emt 0:00:02]} Nf6 {[%emt 0:00:06]} 5. O-O {[%emt 0:00:04]} b5 {[%emt 0:01:31]} 6. Bb3 {[%emt 0:00:04]} Bc5 {[%emt 0:00:08]} 7. a4 {[%emt 0:00:35]} Rb8 {[%emt 0:00:41]} 8. c3 {[%emt 0:00:11]} d6 {[%emt 0:00:56]} 9. d4 {[%emt 0:00:07]} Bb6 {[%emt 0:00:14]} 10. a5 {[%emt 0:00:08]} Ba7 {[%emt 0:00:16]} 11. h3 {[%emt 0:00:07]} O-O {[%emt 0:06:14]} 12. Be3 {[%emt 0:00:26]} exd4 {[%emt 0:05:31]} 13. cxd4 {[%emt 0:00:22]} Nxe4 {[%emt 0:00:32]} 14. Qc2 {[%emt 0:01:13]} Qe8 {[%emt 0:00:13]} 15. Nc3 {[%emt 0:01:44]} Nf6 {[%emt 0:15:15]} 16. Rfe1 {[%emt 0:10:44]} Qd7 {[%emt 0:07:05]} 17. d5 {[%emt 0:17:09]} Nb4 {[%emt 0:00:22]} 18. Qd2 {[%emt 0:00:41]} Bxe3 {[%emt 0:02:25]} 19. Rxe3 {[%emt 0:00:13]} Bb7 {[%emt 0:00:47]} 20. Rae1 {[%emt 0:06:06]} Rbe8 {[%emt 0:15:36]} 21. Qd4 {[%emt 0:16:11]} c5 {[%emt 0:00:30]} 22. dxc6 {[%emt 0:01:10]} Nxc6 {[%emt 0:00:08]} 23. Qb6 {[%emt 0:03:06]} Rxe3 {[%emt 0:00:35]} 24. Rxe3 {[%emt 0:02:43]} h6 {[%emt 0:00:05]} 25. Nd4 {[%emt 0:07:15]} Ne5 {[%emt 0:07:21]} 26. Nf5 {[%emt 0:10:32]} Qxf5 {[%emt 0:07:45]} 27. Qxb7 {[%emt 0:00:25]} Qc8 {[%emt 0:00:04]} 28. Qb6 {[%emt 0:03:37]} Rd8 {[%emt 0:00:43]} 29. Nd5 {[%emt 0:02:02]} Nxd5 {[%emt 0:00:41]} 30. Bxd5 {[%emt 0:00:05]} Nc4 {[%emt 0:00:18]} 31. Bxc4 {[%emt 0:01:06]} bxc4 {[%emt 0:00:12]} 32. Qd4 {[%emt 0:01:54]} d5 {[%emt 0:11:17]} 33. Rg3 {[%emt 0:00:52]} g6 {[%emt 0:00:22]} 34. h4 {[%emt 0:01:48]} h5 {[%emt 0:03:07]} 35. Rg5 {[%emt 0:00:47]} Qe6 {[%emt 0:01:14]} 36. g3 {[%emt 0:02:04]} f5 {[%emt 0:01:25]} 37. Kh2 {[%emt 0:02:32]} Rd6 {[%emt 0:03:55]} 38. Kg1 {[%emt 0:01:25]} Qe1+ {[%emt 0:01:38]} 39. Kh2 {[%emt 0:00:32]} Qe7 {[%emt 0:00:02]} 40. Qc5 {[%emt 0:02:06]} Kh7 {[%emt 0:00:40]} 41. Qd4 {[%emt 0:01:09]} Qd8 {[%emt 0:03:14]} 42. Qa7+ {[%emt 0:00:34]} Qd7 {[%emt 0:00:03]} 43. Qd4 {[%emt 0:00:32]} Qe7 {[%emt 0:00:01]} 44. Kg1 {[%emt 0:01:57]} Qf6 {[%emt 0:05:00]} 45. Qa7+ {[%emt 0:00:16]} Kh8 {[%emt 0:01:16]} 46. Qb8+ {[%emt 0:00:58]} Kg7 {[%emt 0:00:01]} 47. Qa7+ {[%emt 0:01:58]} Kh6 {[%emt 0:00:37]} 48. Qb8 {[%emt 0:01:43]} d4 {[%emt 0:00:16]} 49. Qg8 {[%emt 0:01:01]} Re6 {[%emt 0:01:28]} 50. Qb8 {[%emt 0:00:49]} d3 {[%emt 0:00:27]} 51. Qf4 {[%emt 0:00:50]} Kg7 {[%emt 0:00:22]} 52. Qc7+ {[%emt 0:00:28]} Re7 {[%emt 0:00:08]} 53. Qf4 {[%emt 0:00:34]} Qe5 {[%emt 0:00:42]} 54. Rxg6+ Kxg6 {[%emt 0:00:06]} 55. Qg5+ {[%emt 0:00:49]} Kf7 {[%emt 0:00:08]} 56. Qxh5+ {[%emt 0:00:05]} Ke6 {[%emt 0:00:15]} 57. Qg6+ {[%emt 0:00:16]} Kd7 {[%emt 0:00:13]} 0-1

[Event "SixDays Budapest GM-C 10-2024"]
[Site "Budapest"]
[Date "2024.10.04"]
[Round "7.3"]
[White "Srihari L R"]
[Black "Chen, Yining"]
[Result "1-0"]
[ECO "A06"]
[WhiteElo "2503"]
[BlackElo "2252"]
[Annotator "TA"]
[PlyCount "127"]
[EventDate "2024.09.24"]
[EventType "tourn"]
[EventCountry "HUN"]
[SourceTitle "playchess.com"]
[Source "ChessBase"]
[SourceQuality "1"]
[TimeControl "5400+30"]

{[%evp 26,127,12,3,14,24,26,23,22,6,15,0,10,7,0,0,0,0,16,-19,0,0,0,0,0,0,0,0,0,0,0,0,0,0,5,0,81,0,13,0,45,43,16,15,27,23,21,0,0,0,10,0,0,0,20,0,0,0,0,0,0,0,0,0,33,33,33,33,40,47,48,47,62,39,47,45,73,73,73,72,108,2,102,0,141,85,63,37,28,40,156,152,163,196,285,285,29982,29983,29983,29984,29984,29985,29985,29986]} 1. Nf3 {[%emt 0:11:21]} d5 {[%emt 0:00:12]} 2. g3 {[%emt 0:00:13]} c6 {[%emt 0:00:05]} 3. Bg2 {[%emt 0:00:05]} Bg4 {[%emt 0:00:18]} 4. d4 {[%emt 0:00:27]} Nd7 {[%emt 0:00:17]} 5. O-O {[%emt 0:00:27]} e6 {[%emt 0:00:17]} 6. c4 {[%emt 0:00:42]} Ngf6 {[%emt 0:00:11]} 7. h3 {[%emt 0:01:00] D11: Slav Defence: 3 Nf3 sidelines and 3...Nf6 4 e3 Bg4.} Bf5 {[%emt 0:00:21]} 8. Nc3 {[%emt 0:00:51]} Be7 {[%emt 0:00:11]} 9. Nh4 {[%emt 0:00:36]} Be4 {[%emt 0:10:50]} 10. Nxe4 {[%emt 0:08:29]} Nxe4 {[%emt 0:00:17]} 11. Nf3 {[%emt 0:01:17]} O-O {[%emt 0:00:50]} 12. Qc2 $146 {[%emt 0:03:42]} ({Predecessor:} 12. Qb3 Qb6 13. Qc2 a5 14. Be3 f5 15. h4 Qa6 16. b3 Bd6 17. Ne1 b5 18. c5 {0-1 Warmerdam,M (2613)-Keymer,V (2675) Prague Challengers 4th 2022 (9)}) 12... a5 {[%emt 0:06:38]} 13. h4 {[%emt 0:06:19]} h6 {[%emt 0:03:02]} 14. Ne5 {[%emt 0:02:10]} Nd6 {[%emt 0:08:26]} 15. b3 {[%emt 0:12:20]} a4 {[%emt 0:07:10]} 16. Bb2 {[%emt 0:02:55]} (16. bxa4 Nxe5 17. cxd5 Nec4 18. dxe6 fxe6 $11) 16... a3 {[%emt 0:05:41]} 17. Bc1 {[%emt 0:05:51]} Bf6 {[%emt 0:03:42]} 18. Bf4 {[%emt 0:02:28]} Nf5 {[%emt 0:05:25]} 19. Nxd7 {[%emt 0:06:28]} Qxd7 {[%emt 0:00:28]} 20. e3 {[%emt 0:00:01]} Be7 {[%emt 0:09:44]} 21. h5 {[%emt 0:01:38]} Bd6 {[%emt 0:04:55]} 22. cxd5 {[%emt 0:02:12]} cxd5 {[%emt 0:00:52]} 23. Bxd6 {[%emt 0:00:08]} Nxd6 {[%emt 0:00:13]} 24. Rfc1 {[%emt 0:01:22]} Rfc8 {[%emt 0:00:57]} 25. Qd2 {[%emt 0:00:18]} Qb5 {[%emt 0:01:04]} 26. Bf1 {[%emt 0:02:55]} Qb6 {[%emt 0:01:34]} 27. Bd3 {[%emt 0:00:55]} Ne4 {[%emt 0:09:18]} 28. Qe1 {[%emt 0:00:23]} f5 {[%emt 0:04:15]} 29. Kg2 {[%emt 0:00:35]} Kf7 {[%emt 0:01:20]} 30. Rab1 {[%emt 0:00:10]} Nd6 {[%emt 0:00:49]} (30... Kg8 $11 {keeps the balance.}) 31. Be2 {[%emt 0:01:14]} (31. Rxc8 $1 $16 Rxc8 32. Rc1) 31... Ke7 {[%emt 0:01:36]} 32. b4 {[%emt 0:05:19]} Kd7 {[%emt 0:02:06]} 33. Rb3 {[%emt 0:03:15]} Nc4 {[%emt 0:01:15]} 34. Rcc3 {[%emt 0:02:10]} Qd6 {[%emt 0:01:33]} 35. b5 {[%emt 0:00:11]} Rc7 {[%emt 0:00:44]} 36. Qc1 {[%emt 0:03:50]} Rac8 {[%emt 0:00:24]} 37. Kg1 {[%emt 0:03:43]} Qb6 {[%emt 0:01:02]} 38. Kg2 {[%emt 0:05:20]} Qd6 {[%emt 0:00:31]} 39. Qe1 {[%emt 0:01:34]} Qb6 {[%emt 0:00:31]} 40. Bf1 {[%emt 0:02:26]} Qd6 {[%emt 0:01:12]} 41. Qd1 {[%emt 0:00:37]} Ke7 {[%emt 0:00:42]} 42. Kg1 {[%emt 0:00:40]} Na5 {[%emt 0:02:42]} 43. Rxc7+ {[%emt 0:00:34]} Rxc7 {[%emt 0:00:05]} 44. Rb1 {[%emt 0:00:35]} b6 {[%emt 0:01:47]} 45. Rc1 {[%emt 0:01:01]} Kd7 {[%emt 0:00:11]} 46. Rxc7+ {[%emt 0:00:44]} Qxc7 {[%emt 0:00:56]} 47. Qd2 {[%emt 0:00:01]} Nc4 {[%emt 0:00:54]} 48. Qc3 {[%emt 0:00:45]} Ke8 {[%emt 0:00:29]} 49. Be2 {[%emt 0:00:06]} Kf7 {[%emt 0:02:31]} 50. Kf1 {[%emt 0:00:12]} g6 {[%emt 0:00:43]} 51. hxg6+ {[%emt 0:00:08]} Kxg6 {[%emt 0:00:02]} 52. Ke1 {[%emt 0:00:14]} h5 {[%emt 0:01:02]} 53. Bxc4 {[%emt 0:02:20]} (53. Kf1 $16) 53... dxc4 {[%emt 0:00:30]} (53... Qxc4 $11 54. Qxa3 Kg5 (54... Qxb5 55. Qe7 $16)) 54. Kd2 {[%emt 0:00:00]} (54. Qxa3 $6 c3 $11) (54. Ke2 $16) 54... Kg5 {[%emt 0:00:46]} (54... h4 $1 $11 {remains equal.} 55. gxh4 (55. Qxa3 h3 $17) 55... Qh2) 55. Qxa3 {[%emt 0:00:42]} ({Better is} 55. Ke2 $1) 55... Kg4 $16 {[%emt 0:00:06]} 56. Kc3 {[%emt 0:01:51]} Kf3 {[%emt 0:01:27]} 57. Qb2 {[%emt 0:00:18]} e5 {[%emt 0:00:51] [#]} (57... Qa7 $1 $14) 58. a4 $1 $16 {[%emt 0:00:44]} exd4+ {[%emt 0:00:10]} 59. exd4 {[%emt 0:00:10]} f4 {[%emt 0:00:59] [#]} (59... Kg2 $142 60. Qe2 f4) 60. Qd2 $1 $18 {[%emt 0:00:28]} fxg3 $2 {[%emt 0:00:14]} (60... Qa7 $18 61. Qxf4+ (61. Kxc4 Qxa4+ 62. Kd5 Qxb5+ 63. Kd6 fxg3 $11) 61... Kg2) 61. Qe3+ {[%emt 0:00:16]} Kg2 {[%emt 0:00:10]} 62. Qxg3+ {[%emt 0:00:14]} ({Weaker is} 62. fxg3 Qa7 $16) 62... Qxg3+ {[%emt 0:00:02]} 63. fxg3 {[%emt 0:00:06]} Kxg3 {[%emt 0:00:04]} 64. a5 {[%emt 0:00:03]} 1-0

[Event "SixDays Budapest GM-C 10-2024"]
[Site "Budapest"]
[Date "2024.10.04"]
[Round "7.4"]
[White "Borgaonkar Akshay"]
[Black "Kotronias, Vasilios"]
[Result "1/2-1/2"]
[ECO "B62"]
[WhiteElo "2415"]
[BlackElo "2458"]
[Annotator "RC"]
[PlyCount "104"]
[EventDate "2024.09.24"]
[EventType "tourn"]
[EventCountry "HUN"]
[SourceTitle "playchess.com"]
[Source "ChessBase"]
[SourceQuality "1"]
[TimeControl "5400+30"]

1. e4 {[%emt 0:02:46]} c5 {[%emt 0:01:40]} 2. Nf3 {[%emt 0:00:07]} d6 {[%emt 0:00:15]} 3. d4 {[%emt 0:00:06]} cxd4 {[%emt 0:00:04]} 4. Nxd4 {[%emt 0:00:04]} Nf6 {[%emt 0:00:04]} 5. Nc3 {[%emt 0:00:06]} Nc6 {[%emt 0:00:04]} 6. Bg5 {[%emt 0:00:21]} e6 {[%emt 0:00:04]} 7. Qd3 {[%emt 0:00:08]} Bd7 {[%emt 0:00:38]} 8. O-O-O {[%emt 0:01:25]} a6 {[%emt 0:00:16]} 9. f4 {[%emt 0:00:42]} Qc7 {[%emt 0:00:38]} 10. Be2 {[%emt 0:07:45]} Be7 {[%emt 0:04:29]} 11. Nxc6 {[%emt 0:20:52]} Bxc6 {[%emt 0:00:08]} 12. Bf3 {[%emt 0:00:21]} O-O {[%emt 0:19:34]} 13. h4 {[%emt 0:02:50]} Rfd8 {[%emt 0:00:35]} 14. g4 {[%emt 0:03:12]} d5 {[%emt 0:01:35]} 15. e5 {[%emt 0:01:43]} Ne4 {[%emt 0:00:03]} 16. Bxe4 {[%emt 0:02:02]} dxe4 {[%emt 0:00:08]} 17. Qe3 {[%emt 0:00:03]} Rxd1+ {[%emt 0:06:34]} 18. Rxd1 {[%emt 0:03:04]} Bb4 {[%emt 0:00:24]} 19. h5 {[%emt 0:24:05]} h6 {[%emt 0:03:09]} 20. Bh4 {[%emt 0:00:26]} Qa5 {[%emt 0:00:03]} 21. Kb1 {[%emt 0:06:12]} Bxc3 {[%emt 0:01:34]} 22. Qxc3 {[%emt 0:00:25]} Qxc3 {[%emt 0:00:10]} 23. bxc3 {[%emt 0:00:01]} e3 {[%emt 0:03:44]} 24. Rd3 {[%emt 0:02:35]} Bf3 {[%emt 0:00:58]} 25. g5 {[%emt 0:00:42]} hxg5 {[%emt 0:00:08]} 26. Rxe3 {[%emt 0:01:38]} gxh4 {[%emt 0:01:17]} 27. Rxf3 {[%emt 0:00:04]} Rc8 {[%emt 0:00:22]} 28. Rh3 {[%emt 0:00:20]} Rc4 {[%emt 0:00:13]} 29. Rxh4 {[%emt 0:00:06]} Rxc3 {[%emt 0:00:03]} 30. Kb2 {[%emt 0:02:39]} Rf3 {[%emt 0:00:08]} 31. a4 {[%emt 0:01:09]} a5 {[%emt 0:02:16]} 32. c3 {[%emt 0:00:33]} Kh7 {[%emt 0:03:14]} 33. Kb3 {[%emt 0:01:41]} Kh6 {[%emt 0:00:06]} 34. Kc4 {[%emt 0:02:01]} f5 {[%emt 0:00:12]} 35. exf6 {[%emt 0:02:28]} gxf6 {[%emt 0:00:05]} 36. Kd4 {[%emt 0:05:52]} Rf1 {[%emt 0:00:07]} 37. Kc5 {[%emt 0:00:17]} Ra1 {[%emt 0:11:10]} 38. Kb5 {[%emt 0:01:40]} Re1 {[%emt 0:10:31]} 39. Kxa5 {[%emt 0:01:50]} Re4 {[%emt 0:00:05]} 40. Kb5 {[%emt 0:00:57]} e5 {[%emt 0:00:09]} 41. a5 {[%emt 0:00:29]} exf4 {[%emt 0:00:43]} 42. Kb6 {[%emt 0:00:42]} Kg5 {[%emt 0:02:37]} 43. Rh1 {[%emt 0:00:16]} Re7 {[%emt 0:00:13]} 44. h6 {[%emt 0:00:54]} Rh7 {[%emt 0:00:05]} 45. c4 {[%emt 0:00:31]} f3 {[%emt 0:00:18]} 46. c5 {[%emt 0:01:07]} f5 {[%emt 0:04:36]} 47. c6 {[%emt 0:00:59]} bxc6 {[%emt 0:00:04]} 48. a6 {[%emt 0:00:06]} Rxh6 {[%emt 0:00:15]} 49. a7 {[%emt 0:01:23]} Rxh1 {[%emt 0:00:23]} 50. a8=Q {[%emt 0:00:01]} f2 {[%emt 0:01:06]} 51. Qg8+ {[%emt 0:00:56]} Kf4 {[%emt 0:00:15]} 52. Qc4+ {[%emt 0:00:08]} Kg5 {[%emt 0:02:06]} 1/2-1/2

[Event "SixDays Budapest GM-C 10-2024"]
[Site "Budapest"]
[Date "2024.10.04"]
[Round "7.5"]
[White "Mohammad Fahad, Rahman"]
[Black "Pacher, Milan"]
[Result "1-0"]
[ECO "D38"]
[WhiteElo "2419"]
[BlackElo "2343"]
[Annotator "RC"]
[PlyCount "41"]
[EventDate "2024.09.24"]
[EventType "tourn"]
[EventCountry "HUN"]
[SourceTitle "playchess.com"]
[Source "ChessBase"]
[SourceQuality "1"]
[TimeControl "5400+30"]

1. d4 {[%emt 0:09:11]} d5 {[%emt 0:01:32]} 2. c4 {[%emt 0:00:33]} e6 {[%emt 0:00:05]} 3. Nc3 {[%emt 0:00:13]} Nf6 {[%emt 0:00:05]} 4. Nf3 {[%emt 0:00:21]} Bb4 {[%emt 0:00:05]} 5. Qa4+ {[%emt 0:06:59]} Nc6 {[%emt 0:00:04]} 6. e3 {[%emt 0:00:09]} O-O {[%emt 0:00:06]} 7. Bd2 {[%emt 0:01:50]} a6 {[%emt 0:05:33]} 8. a3 {[%emt 0:00:24]} Bxc3 {[%emt 0:02:51]} 9. Bxc3 {[%emt 0:00:17]} Ne4 {[%emt 0:00:06]} 10. Qc2 {[%emt 0:02:10]} Nxc3 {[%emt 0:04:35]} 11. Qxc3 {[%emt 0:00:13]} b6 {[%emt 0:02:35]} 12. Bd3 {[%emt 0:15:05]} dxc4 {[%emt 0:00:41]} 13. Qxc4 {[%emt 0:02:51]} Bb7 {[%emt 0:00:23]} 14. Qc2 {[%emt 0:01:42]} h6 {[%emt 0:05:55]} 15. Be4 {[%emt 0:13:31]} Na5 {[%emt 0:00:36]} 16. Rc1 {[%emt 0:01:21]} c5 {[%emt 0:03:44]} 17. O-O {[%emt 0:07:04]} cxd4 {[%emt 0:11:36]} 18. Bxb7 {[%emt 0:04:40]} d3 {[%emt 0:01:22]} 19. Qc7 {[%emt 0:00:19]} Qxc7 {[%emt 0:00:04]} 20. Rxc7 {[%emt 0:00:06]} Ra7 {[%emt 0:00:04]} 21. b4 {[%emt 0:00:07]} 1-0